fUST/lending_fUST_20251228
["ID","MTS","AMOUNT","RATE_DAILY","PERIOD"]
[399933883,1766888207720,175.81271278,0.00012327,2]
[399933884,1766888207752,500.0,0.00012327,2]
[399933885,1766888207782,500.0,0.00012327,2]
[399933886,1766888207820,500.0,0.00012327,2]
[399933887,1766888208019,521.52318222,0.00012327,2]
[399933888,1766888208100,392.7949414,0.00012327,2]
[399933889,1766888208124,107.2050586,0.00012327,2]
[399933890,1766888208176,500.0,0.00012327,2]
[399933891,1766888208224,2994.54609111,0.00012327,2]
[399933892,1766888208310,500.0,0.00012327,2]
[399933893,1766888208495,500.0,0.00012327,2]
[399933894,1766888214963,150.0,6.341e-05,2]
[399933895,1766888215394,150.0,6.643e-05,2]
[399933896,1766888215842,150.0,6.945e-05,2]
[399933897,1766888216298,150.0,7.246e-05,2]
[399933898,1766888216742,150.0,7.548e-05,2]
[399933899,1766888216773,4648.25885029,0.00012327,2]
[399933900,1766888216797,351.74114971,0.00012327,2]
[399933901,1766888217206,150.0,7.85e-05,2]
[399933902,1766888217662,150.0,8.152e-05,2]
[399933903,1766888218382,168.35,8.454e-05,2]
[399933904,1766888218815,189.39,8.756e-05,2]
[399933905,1766888219242,210.44,9.058e-05,2]
[399933906,1766888223026,300.0,0.00012327,2]
[399933907,1766888240835,5000.0,0.00012327,2]
[399933908,1766888264174,3480.08885029,0.00012327,2]
[399933909,1766888264204,1519.91114971,0.00012327,2]
[399933910,1766888270762,513.69154809,0.00030134,120]
[399933911,1766888336029,223.72715796,0.00030134,120]
[399933912,1766888360837,173.75875734,0.00030137,120]
[399933913,1766888398039,-5000.0,0.00012204,2]
[399933914,1766888398063,-300.0,0.00012327,2]
[399933915,1766888398084,-304.0,0.00012327,2]
[399933916,1766888398106,-300.0,0.00012328,2]
[399933917,1766888398127,-873.86,0.00012329,2]
[399933918,1766888398148,-7679.74,0.00012329,2]
[399933919,1766888398170,-6399.78,0.00012329,2]
[399933920,1766888398196,-5333.15,0.00012329,2]
[399933921,1766888398218,-4444.29,0.00012329,2]
[399933922,1766888398241,-3703.58,0.00012329,2]
[399933923,1766888398263,-3703.58,0.00012329,2]
[399933924,1766888398285,-2469.05,0.00012329,2]
[399933925,1766888398306,-2057.54,0.00012329,2]
[399933926,1766888398328,-232.13888087,0.00012531,2]
[399933927,1766888398354,-297185.80501725,0.00012869,2]
[399933928,1766888400759,2057.54,0.00012329,2]
[399933929,1766888403937,5000.0,0.000129,2]
[399933930,1766888420013,320.70701153,0.000129,2]
[399933931,1766888426827,500.0,0.00012327,2]
[399933932,1766888426864,500.0,0.00012327,2]
[399933933,1766888426898,446.04198823,0.00012327,2]
[399933934,1766888426924,397.37618208,0.00012327,2]
[399933935,1766888426950,500.0,0.00012327,2]
[399933936,1766888426977,500.0,0.00012327,2]
[399933937,1766888427008,164.20686102,0.00012327,2]
[399933938,1766888427034,472.79182739,0.00012327,2]
[399933939,1766888427069,500.0,0.00012327,2]
[399933940,1766888427947,5000.0,0.000129,2]
[399933941,1766888429511,246.1415,0.00029,120]
[399933942,1766888434990,200.0,0.00027,120]
[399933943,1766888435269,200.0,0.000279,120]
[399933944,1766888435563,247.15262,0.000288,120]
[399933945,1766888452555,5000.0,0.000129,2]
[399933946,1766888477414,5000.0,0.000129,2]
[399933948,1766888490260,-7418.82223163,0.0001302,2]
[399933951,1766888501715,5000.0,0.00013,2]
[399933952,1766888540280,150.0,6.798e-05,2]
[399933953,1766888540716,150.0,7.121e-05,2]
[399933954,1766888541207,150.0,7.445e-05,2]
[399933955,1766888542160,150.0,7.769e-05,2]
[399933956,1766888542563,150.0,8.092e-05,2]
[399933957,1766888542998,169.92,8.416e-05,2]
[399933958,1766888543445,198.24,8.74e-05,2]
[399933959,1766888543920,226.56,9.063e-05,2]
[399933960,1766888544360,254.88,9.387e-05,2]
[399933961,1766888544822,283.2,9.711e-05,2]
[399933962,1766888611036,150.0,5.895e-05,2]
[399933963,1766888611697,150.0,6.176e-05,2]
[399933964,1766888612155,150.0,6.456e-05,2]
[399933965,1766888612603,150.0,6.737e-05,2]
[399933966,1766888613204,172.29,7.018e-05,2]
[399933967,1766888613645,206.74,7.299e-05,2]
[399933968,1766888614092,241.2,7.579e-05,2]
[399933969,1766888614517,275.66,7.86e-05,2]
[399933970,1766888615040,310.12,8.141e-05,2]
[399933971,1766888615436,344.57,8.421e-05,2]
[399933972,1766888637762,469.2200309,0.00012119,2]
[399933973,1766888683758,150.0,5.783e-05,2]
[399933974,1766888684162,150.0,6.058e-05,2]
[399933975,1766888684602,150.0,6.333e-05,2]
[399933977,1766888836134,-872.8272684,0.00012887,2]
[399933978,1766888903470,-5000.0,0.00012758,2]
[399933979,1766888904761,0.01,0.0001,2]
[399933980,1766888904786,288.79195455,0.0001,2]
[399933981,1766888906135,771.6458934,0.00012018,2]
[399933983,1766888914507,1000.0,0.0001,2]
[399933984,1766888915175,800.15,0.00012329,2]
[399933985,1766888916348,5000.0,0.00012758,2]
[399933986,1766888918558,-971.84717795,0.00012918,2]
[399933987,1766888919402,160.80055141,0.0002739,120]
[399933988,1766888921516,6998.44939984,0.0001,2]
[399933989,1766888925247,1057.86624426,7.3e-05,2]
[399933990,1766888925277,7198.64820455,7.3e-05,2]
[399933991,1766888925846,1391.48,0.00012329,2]
[399933992,1766888926455,680.91408908,0.0003,120]
[399933993,1766888936502,1159.57,0.00012329,2]
[399933994,1766888939747,5000.0,0.00012942,2]
[399933995,1766888943563,3840.44,0.0001292,2]
[399933996,1766888943589,7353.58546042,0.0001292,2]
[399933997,1766888947308,966.31,0.00012329,2]
[399933998,1766888954089,-190.3760696,0.00012952,2]
[399933999,1766888957738,805.26,0.00012329,2]
[399934000,1766888967115,-4941.63931353,0.00012822,2]
[399934001,1766888968216,671.05,0.00012329,2]
[399934002,1766888979171,559.2,0.00012329,2]
[399934003,1766888989602,466.0,0.00012329,2]
[399934004,1766888995334,165.96262439,0.00012252,2]
[399934005,1766889000036,388.34,0.00012329,2]
[399934006,1766889010588,323.61,0.00012329,2]
[399934007,1766889021167,269.68,0.00012329,2]
[399934037,1766889032286,-58.36068647,0.00012822,2]
[399934038,1766889032296,-602.0,0.00012822,2]
[399934039,1766889032306,-74.1858389,0.00012952,2]
[399934040,1766889032315,-214.65874785,0.00013012,2]
[399934041,1766889032325,-53.11041403,0.00013015,2]
[399934042,1766889032345,-382.28954595,0.00013015,2]
[399934043,1766889032389,224.73,0.00012329,2]
[399934044,1766889034972,200.0,0.00027,120]
[399934045,1766889035266,200.0,0.000279,120]
[399934046,1766889036056,200.0,0.000288,120]
[399934061,1766889037836,-64.60004002,0.00013015,2]
[399934063,1766889037846,-500.0,0.00013015,2]
[399934064,1766889037856,-395.28218625,0.00013015,2]
[399934066,1766889037866,-500.0,0.00013015,2]
[399934068,1766889037877,-500.0,0.00013015,2]
[399934070,1766889037886,-327.56911196,0.00013015,2]
[399934072,1766889037896,-500.0,0.00013015,2]
[399934073,1766889037906,-500.0,0.00013015,2]
[399934074,1766889037915,-500.0,0.00013015,2]
[399934075,1766889037924,-500.0,0.00013015,2]
[399934076,1766889037934,-500.0,0.00013015,2]
[399934077,1766889037944,-646.73316319,0.00013015,2]
[399934078,1766889037953,-500.0,0.00013015,2]
[399934079,1766889037963,-370.69593406,0.00013015,2]
[399934080,1766889037972,-500.0,0.00013015,2]
[399934081,1766889037981,-118.46831096,0.00013015,2]
[399934082,1766889037993,-381.53168904,0.00013015,2]
[399934083,1766889038003,-500.0,0.00013015,2]
[399934084,1766889038012,-500.0,0.00013015,2]
[399934085,1766889038022,-500.0,0.00013015,2]
[399934086,1766889038031,-500.0,0.00013015,2]
[399934087,1766889038041,-500.81971669,0.00013015,2]
[399934088,1766889038050,-500.0,0.00013015,2]
[399934089,1766889038059,-500.0,0.00013015,2]
[399934090,1766889038069,-500.0,0.00013015,2]
[399934091,1766889038079,-500.0,0.00013015,2]
[399934092,1766889038088,-500.0,0.00013015,2]
[399934093,1766889038098,-500.0,0.00013015,2]
[399934094,1766889038107,-500.0,0.00013015,2]
[399934095,1766889038117,-622.65222667,0.00013015,2]
[399934096,1766889038126,-251.76998497,0.00013015,2]
[399934097,1766889038138,-248.23001503,0.00013015,2]
[399934098,1766889038148,-500.0,0.00013015,2]
[399934099,1766889038158,-500.0,0.00013015,2]
[399934100,1766889038168,-500.0,0.00013015,2]
[399934101,1766889038178,-500.0,0.00013015,2]
[399934102,1766889038187,-500.0,0.00013015,2]
[399934103,1766889038198,-500.0,0.00013015,2]
[399934104,1766889038207,-500.0,0.00013015,2]
[399934105,1766889038216,-650.0,0.00013015,2]
[399934106,1766889038226,-500.0,0.00013015,2]
[399934107,1766889038236,-500.0,0.00013015,2]
[399934108,1766889038245,-500.0,0.00013015,2]
[399934109,1766889038255,-500.0,0.00013015,2]
[399934110,1766889038265,-500.0,0.00013015,2]
[399934111,1766889038275,-500.0,0.00013015,2]
[399934112,1766889038284,-500.0,0.00013015,2]
[399934113,1766889038293,-500.0,0.00013015,2]
[399934114,1766889038303,-500.0,0.00013015,2]
[399934115,1766889038313,-500.0,0.00013015,2]
[399934116,1766889038323,-500.0,0.00013015,2]
[399934117,1766889038332,-500.0,0.00013015,2]
[399934118,1766889038341,-214.83151827,0.00013015,2]
[399934119,1766889038351,-300.0,0.00013015,2]
[399934120,1766889038360,-1200.0,0.00013015,2]
[399934121,1766889038371,-1200.0,0.00013016,2]
[399934122,1766889038380,-16889.35977196,0.00013017,2]
[399934123,1766889038392,-9899.28973633,0.00013017,2]
[399934124,1766889038402,-500.0,0.00013019,2]
[399934125,1766889038411,-360157.6355907,0.0001302,2]
[399934126,1766889038421,-1762.0316,0.0001302,2]
[399934127,1766889038431,-1762.0316,0.0001302,2]
[399934128,1766889038441,-1762.0316,0.0001302,2]
[399934129,1766889038451,-1762.0316,0.0001302,2]
[399934130,1766889038461,-988.2657,0.0001302,2]
[399934131,1766889038471,-1662.0239,0.0001302,2]
[399934132,1766889038481,-300.0,0.0001312,2]
[399934133,1766889038492,-300.0,0.0001312,2]
[399934134,1766889038501,-300.0,0.0001312,2]
[399934135,1766889038511,-300.0,0.0001312,2]
[399934136,1766889038521,-300.0,0.0001312,2]
[399934137,1766889038531,-300.0,0.0001312,2]
[399934138,1766889038540,-300.0,0.0001312,2]
[399934139,1766889038549,-300.0,0.0001312,2]
[399934140,1766889038559,-300.0,0.0001312,2]
[399934141,1766889038569,-300.0,0.0001312,2]
[399934142,1766889038579,-300.0,0.0001312,2]
[399934143,1766889038588,-300.0,0.0001312,2]
[399934144,1766889038598,-300.0,0.0001312,2]
[399934145,1766889038607,-300.0,0.0001312,2]
[399934146,1766889038617,-300.0,0.0001312,2]
[399934147,1766889038627,-600.0,0.0001312,2]
[399934148,1766889038636,-500.0,0.00013273,2]
[399934149,1766889038646,-500.0,0.00013273,2]
[399934150,1766889038656,-500.0,0.00013273,2]
[399934151,1766889038665,-500.0,0.00013273,2]
[399934152,1766889038675,-500.0,0.00013273,2]
[399934153,1766889038684,-500.0,0.00013273,2]
[399934154,1766889038694,-500.28055884,0.00013273,2]
[399934155,1766889038704,-500.0,0.00013273,2]
[399934156,1766889038714,-500.0,0.00013293,2]
[399934157,1766889038724,-10000.0,0.0001354,2]
[399934158,1766889038733,-500.0,0.00013567,2]
[399934159,1766889038743,-296.55612457,0.00013698,2]
[399934160,1766889038753,-500.0,0.00013698,2]
[399934161,1766889038762,-518.0909993,0.00013698,2]
[399934162,1766889038772,-514.14658167,0.00013698,2]
[399934163,1766889038781,-171.994561,0.00013699,2]
[399934164,1766889038791,-890.154952,0.00013699,2]
[399934165,1766889038803,-212.98731756,0.0001373,2]
[399934166,1766889038813,-500.0,0.00013821,2]
[399934167,1766889038822,-1000.0,0.00013821,2]
[399934168,1766889038832,-1000.0,0.00013821,2]
[399934169,1766889038842,-500.0,0.00013841,2]
[399934170,1766889038852,-500.0,0.00014115,2]
[399934171,1766889038862,-279.54121971,0.00014238,2]
[399934172,1766889038874,-420.0,0.00014273,2]
[399934173,1766889038884,-46375.24312558,0.000143,7]
[399934174,1766889038894,-1680.0,0.00014316,2]
[399934175,1766889038903,-500.0,0.00014368,2]
[399934176,1766889038913,-500.0,0.00014389,2]
[399934177,1766889038922,-720.0,0.00014432,2]
[399934178,1766889038931,-500.0,0.00014663,2]
[399934179,1766889038941,-297.64112568,0.00014693,2]
[399934180,1766889038950,-461.67526834,0.00014693,2]
[399934181,1766889038960,-151.0,0.00014693,2]
[399934182,1766889038970,-151.0,0.00014693,2]
[399934183,1766889038979,-151.0,0.00014693,2]
[399934184,1766889038989,-2230.315306,0.00014693,2]
[399934185,1766889038999,-151.0,0.00014693,2]
[399934186,1766889039008,-151.0,0.00014693,2]
[399934187,1766889039018,-151.0,0.00014693,2]
[399934188,1766889039028,-151.0,0.00014693,2]
[399934189,1766889039037,-151.0,0.00014693,2]
[399934190,1766889039046,-151.0,0.00014693,2]
[399934191,1766889039056,-151.0,0.00014693,2]
[399934192,1766889039065,-151.0,0.00014693,2]
[399934193,1766889039075,-151.0,0.00014693,2]
[399934194,1766889039085,-222.58479058,0.00014693,2]
[399934195,1766889039095,-168.0,0.00014908,2]
[399934196,1766889039104,-500.0,0.00014937,2]
[399934197,1766889039113,-312.18305203,0.00014952,2]
[399934198,1766889039123,-73155.46260989,0.00015,2]
[399934199,1766889039133,-23317.27208795,0.00015028,2]
[399934200,1766889039143,-306.82057419,0.00015058,2]
[399934201,1766889039153,-177.372403,0.00015068,2]
[399934202,1766889039162,-382.99379444,0.00015175,2]
[399934203,1766889039171,-1000.0,0.000152,2]
[399934204,1766889039180,-500.0,0.00015211,2]
[399934205,1766889039190,-319.47567967,0.00015213,2]
[399934206,1766889039199,-478.75725327,0.00015241,2]
[399934207,1766889039208,-170.8456146,0.00015241,2]
[399934208,1766889039218,-757.7934797,0.000154,2]
[399934209,1766889039227,-298.43399118,0.00015416,2]
[399934210,1766889039236,-500.0,0.00015485,2]
[399934211,1766889039245,-587.0,0.00015652,2]
[399934212,1766889039254,-720.0,0.00015748,2]
[399934213,1766889039264,-500.0,0.00015759,2]
[399934214,1766889039274,-496.47127164,0.00015789,2]
[399934215,1766889039284,-864.0,0.00015875,2]
[399934216,1766889039293,-168.0,0.00015927,2]
[399934217,1766889039303,-212.29759973,0.00016033,2]
[399934218,1766889039312,-273.1673033,0.00016337,2]
[399934219,1766889039322,-160.0,0.000164,2]
[399934220,1766889039332,-260.0,0.00016948,2]
[399934221,1766889039341,-359.80419556,0.00016952,2]
[399934222,1766889039351,-823.0,0.00017165,2]
[399934223,1766889039360,-1000.0,0.00017462,2]
[399934224,1766889039369,-360.0,0.00017496,2]
[399934225,1766889039379,-1041.66666667,0.00017681,2]
[399934226,1766889039388,-635.602,0.00017797,2]
[399934227,1766889039397,-1372.236,0.00017797,2]
[399934228,1766889039407,-2169.373,0.00017797,2]
[399934229,1766889039416,-460.0,0.00018044,2]
[399934230,1766889039426,-560.0,0.00018592,2]
[399934231,1766889039436,-1152.0,0.00018824,2]
[399934232,1766889039445,-407.42533909,0.00018952,2]
[399934233,1766889039455,-660.0,0.0001914,2]
[399934234,1766889039464,-164.66424836,0.00019178,2]
[399934235,1766889039473,-154.95715764,0.00019178,2]
[399934236,1766889039483,-1332.79,0.000192,2]
[399934237,1766889039492,-165.02,0.000192,2]
[399934238,1766889039501,-1000.0,0.00019208,2]
[399934239,1766889039512,-244.0,0.00019208,2]
[399934240,1766889039522,-173.39,0.000193,2]
[399934241,1766889039531,-760.0,0.00019688,2]
[399934242,1766889039540,-211377.18492723,0.000198,2]
[399934243,1766889039553,-3779.83177382,0.000198,2]
[399934244,1766889039564,-6100.50236508,0.000198,2]
[399934245,1766889039575,-24786.68248458,0.000198,2]
[399934252,1766889039860,-15428.57696948,0.000198,2]
[399934253,1766889039872,-322.24925186,0.000198,2]
[399934254,1766889039884,-3393.27706792,0.000198,2]
[399934255,1766889039895,-397.22338459,0.000198,2]
[399934256,1766889039907,-275809.00554177,0.000198,2]
[399934257,1766889039916,-2000.0,0.0002,7]
[399934258,1766889039925,-890.154952,0.00020187,2]
[399934259,1766889039934,-860.0,0.00020236,2]
[399934260,1766889039943,-22912.49057637,0.00020441,3]
[399934261,1766889039952,-8258.63,0.000205,2]
[399934262,1766889039961,-805.0,0.00020644,2]
[399934263,1766889039971,-960.0,0.00020784,2]
[399934264,1766889039980,-455.04648262,0.00020952,2]
[399934265,1766889039989,-656.15678601,0.00021,2]
[399934266,1766889039998,-1000.0,0.00021129,10]
[399934267,1766889040008,-492.0,0.00021129,10]
[399934268,1766889040018,-151.0,0.00021319,2]
[399934269,1766889040027,-1060.0,0.00021332,2]
[399934270,1766889040037,-160.0,0.00021484,2]
[399934271,1766889040046,-500.0,0.00021524,7]
[399934272,1766889040055,-160.0,0.00021648,2]
[399934273,1766889040064,-160.0,0.00021813,2]
[399934274,1766889040073,-160.0,0.00021819,2]
[399934275,1766889040082,-160.0,0.00021828,2]
[399934276,1766889040091,-160.0,0.00021853,2]
[399934277,1766889040101,-160.0,0.00021853,2]
[399934278,1766889040111,-1160.0,0.00021879,2]
[399934279,1766889040120,-151.0,0.00021929,2]
[399934280,1766889040270,-151.0,0.000224,10]
[399934281,1766889040296,-184.0103854,0.00022438,2]
[399934282,1766889040306,-184.0103854,0.00022438,2]
[399934283,1766889040315,-184.0103854,0.00022438,2]
[399934284,1766889040325,-184.0103854,0.00022438,2]
[399934285,1766889040335,-371.9836344,0.00022438,2]
[399934286,1766889040343,-183.4719214,0.00022438,2]
[399934287,1766889040353,-151.0,0.00022539,2]
[399934288,1766889040363,-459.01823851,0.00022686,2]
[399934289,1766889040372,-151.0,0.000227,10]
[399934290,1766889040382,-4174.4642763,0.00022772,2]
[399934291,1766889040391,-502.66762616,0.00022952,2]
[399934292,1766889040401,-1041.66666667,0.00023,3]
[399934293,1766889040410,-1983.90206574,0.00023012,2]
[399934294,1766889040419,-151.0,0.00023149,2]
[399934295,1766889040429,-54505.33117473,0.00023168,5]
[399934296,1766889040478,-467.93,0.00023168,5]
[399934297,1766889040625,-3e-08,0.00023168,5]
[399934298,1766889040639,-1306.50365617,0.00023168,5]
[399934313,1766889044251,-187.28,0.0001979,3]
[399934315,1766889044262,-374.56,0.0002116,3]
[399934316,1766889044272,-31239.91235692,0.00023168,5]
[399934317,1766889044283,-950.0,0.00023168,5]
[399934318,1766889044393,-4539.05564192,0.00023168,5]
[399934319,1766889044402,-166.0,0.00023168,3]
[399934320,1766889044411,-152.0,0.00023168,3]
[399934321,1766889044421,-166.0,0.00023168,3]
[399934322,1766889044430,-152.0,0.00023168,3]
[399934323,1766889044439,-166.0,0.00023168,3]
[399934324,1766889044448,-152.0,0.00023168,3]
[399934325,1766889044458,-163.0,0.00023168,3]
[399934326,1766889044467,-166.0,0.00023168,3]
[399934327,1766889044476,-152.0,0.00023168,3]
[399934328,1766889044485,-172.0,0.00023168,3]
[399934329,1766889044495,-184.28559161,0.00023168,3]
[399934330,1766889044506,-39.43456142,0.00023168,3]
[399934331,1766889044515,-152.0,0.00023168,3]
[399934332,1766889044525,-166.0,0.00023168,3]
[399934333,1766889044534,-152.0,0.00023168,3]
[399934334,1766889044543,-166.0,0.00023168,3]
[399934335,1766889044552,-297.69439764,0.00023168,3]
[399934336,1766889044562,-166.0,0.00023168,3]
[399934337,1766889044571,-335.0,0.00023168,3]
[399934338,1766889044580,-166.0,0.00023168,3]
[399934339,1766889044589,-335.0,0.00023168,3]
[399934340,1766889044598,-166.0,0.00023168,3]
[399934341,1766889044607,-335.0,0.00023168,3]
[399934342,1766889044616,-335.0,0.00023168,3]
[399934343,1766889044625,-166.0,0.00023168,3]
[399934344,1766889044634,-166.0,0.00023168,3]
[399934345,1766889044643,-335.0,0.00023168,3]
[399934346,1766889044652,-335.0,0.00023168,3]
[399934347,1766889044662,-335.0,0.00023168,3]
[399934348,1766889044672,-172.0,0.00023168,3]
[399934349,1766889044694,-335.0,0.00023168,3]
[399934350,1766889044705,-320.52745031,0.00023168,3]
[399934351,1766889044981,-0.60792988,0.00023168,3]
[399934352,1766889045103,-13.86461981,0.00023168,3]
[399934353,1766889045113,-335.0,0.00023168,3]
[399934354,1766889045123,-22.26022576,0.00023168,3]
[399934361,1766889045960,-312.73977424,0.00023168,3]
[399934362,1766889045970,-335.0,0.00023168,3]
[399934363,1766889045979,-335.0,0.00023168,3]
[399934364,1766889045989,-335.0,0.00023168,3]
[399934365,1766889045998,-151.0,0.00023168,3]
[399934366,1766889046009,-335.0,0.00023168,3]
[399934367,1766889046018,-151.0,0.00023168,3]
[399934368,1766889046028,-335.0,0.00023168,3]
[399934369,1766889046037,-151.0,0.00023168,3]
[399934370,1766889046047,-335.0,0.00023168,3]
[399934371,1766889046057,-151.0,0.00023168,3]
[399934372,1766889046067,-335.0,0.00023168,3]
[399934373,1766889046076,-151.0,0.00023168,3]
[399934374,1766889046085,-335.0,0.00023168,3]
[399934375,1766889046094,-151.0,0.00023168,3]
[399934376,1766889046104,-335.0,0.00023168,3]
[399934377,1766889046114,-169.98107143,0.00023168,3]
[399934378,1766889046123,-335.0,0.00023168,3]
[399934379,1766889046133,-335.0,0.00023168,3]
[399934380,1766889046142,-335.0,0.00023168,3]
[399934381,1766889046152,-335.0,0.00023168,3]
[399934382,1766889046162,-335.0,0.00023168,3]
[399934383,1766889046171,-335.0,0.00023168,3]
[399934384,1766889046180,-335.0,0.00023168,3]
[399934385,1766889046189,-335.0,0.00023168,3]
[399934386,1766889046198,-311.34885822,0.00023168,3]
[399934387,1766889046207,-2833.08,0.000232,7]
[399934388,1766889046216,-287.09391442,0.00023205,9]
[399934389,1766889046226,-1600.0,0.00023222,2]
[399934390,1766889046235,-500.0,0.00023236,2]
[399934391,1766889046244,-1000.0,0.00023242,10]
[399934392,1766889046254,-791.0,0.00023242,10]
[399934393,1766889046263,-1600.0,0.00023253,2]
[399934394,1766889046273,-1600.0,0.00023308,2]
[399934395,1766889046283,-1600.0,0.00023311,2]
[399934396,1766889046292,-1600.0,0.00023365,2]
[399934397,1766889046301,-500.0,0.00023391,2]
[399934398,1766889046310,-10000.0,0.000234,3]
[399934399,1766889046320,-287243.66396583,0.000234,3]
[399934400,1766889047538,-877.01350082,0.000234,3]
[399934401,1766889047550,-9239.59067387,0.000234,3]
[399934402,1766889058700,-5000.0,0.0001279,2]
[399934403,1766889069283,0.01,6.231e-05,2]
[399934404,1766889069310,149.99,6.231e-05,2]
[399934405,1766889069705,150.0,6.528e-05,2]
[399934406,1766889070152,150.0,6.825e-05,2]
[399934407,1766889070590,153.69,7.122e-05,2]
[399934408,1766889071033,192.11,7.418e-05,2]
[399934409,1766889071473,230.53,7.715e-05,2]
[399934410,1766889071915,268.95,8.012e-05,2]
[399934411,1766889072344,307.38,8.308e-05,2]
[399934412,1766889072820,345.8,8.605e-05,2]
[399934413,1766889073300,384.22,8.902e-05,2]
[399934414,1766889073768,-5979.06911228,0.00012917,2]
[399934415,1766889073800,-10000.01,0.00012917,2]
[399934416,1766889073907,-10000.01,0.00012917,2]
[399934417,1766889074021,-10000.01,0.00012917,2]
[399934418,1766889074169,-1960.8820451,0.00012917,2]
[399934419,1766889074193,-6078.2459098,0.00012917,2]
[399934420,1766889080131,5000.0,0.00012917,2]
[399934421,1766889089032,-1016.86454632,0.00012919,2]
[399934422,1766889104368,5000.0,0.00012919,2]
[399934423,1766889128063,5000.0,0.00012967,2]
[399934424,1766889139620,0.01,6.121e-05,2]
[399934425,1766889139647,149.99,6.121e-05,2]
[399934426,1766889140064,150.0,6.412e-05,2]
[399934427,1766889140506,150.0,6.704e-05,2]
[399934428,1766889141117,188.75,6.995e-05,2]
[399934429,1766889141581,235.93,7.287e-05,2]
[399934430,1766889142163,283.12,7.578e-05,2]
[399934431,1766889142474,330.31,7.869e-05,2]
[399934432,1766889142953,377.49,8.161e-05,2]
[399934433,1766889143403,424.68,8.452e-05,2]
[399934434,1766889143854,471.87,8.744e-05,2]
[399934435,1766889151762,5000.0,0.00012967,2]
[399934437,1766889174347,-218.52813642,0.00012967,2]
[399934438,1766889174370,-500.0,0.00013014,2]
[399934439,1766889174393,-92.56098005,0.00013014,2]
[399934440,1766889176048,2237.87,0.00012967,2]
[399934441,1766889176072,2762.13,0.00012967,2]
[399934442,1766889189455,-407.43901995,0.00013014,2]
[399934443,1766889189480,-225.23155453,0.00013014,2]
[399934444,1766889191028,-261.12381645,0.00013014,2]
[399934445,1766889192919,-13.64462902,0.00013014,2]
[399934446,1766889192943,-353.85347272,0.00013014,2]
[399934447,1766889196757,-146.14652728,0.00013014,2]
[399934448,1766889196780,-105.32712663,0.00013014,2]
[399934449,1766889199338,5000.0,0.00012967,2]
[399934450,1766889199416,-235.1273795,0.00013014,2]
[399934451,1766889204912,-159.54549387,0.00013014,2]
[399934452,1766889204936,-140.45450613,0.00013014,2]
[399934453,1766889207016,-359.54549387,0.00013014,2]
[399934454,1766889207040,-82.67481769,0.00013014,2]
[399934455,1766889208599,-169.33706153,0.00013014,2]
[399934456,1766889212039,150.0,6.104e-05,2]
[399934457,1766889212480,150.0,6.395e-05,2]
[399934458,1766889212511,-247.98812078,0.00013014,2]
[399934459,1766889212536,-62.49932595,0.00013014,2]
[399934460,1766889212946,150.0,6.685e-05,2]
[399934461,1766889213355,150.0,6.976e-05,2]
[399934462,1766889213934,150.0,7.267e-05,2]
[399934463,1766889214007,-285.22315071,0.00013014,2]